fUSD/lending_fUSD_20240122
["ID","MTS","AMOUNT","RATE_DAILY","PERIOD"]
[312509110,1705935345394,-3105.23,0.00057534,120]
[312509111,1705935345426,-500.0,0.00057534,120]
[312509112,1705935345458,-1967.28,0.00057534,120]
[312509113,1705935345490,-504.66,0.00057534,120]
[312509114,1705935345521,-2108.57,0.00057534,120]
[312509115,1705935345554,-5534.47,0.00057534,120]
[312509116,1705935345586,-2822.45,0.00057534,120]
[312509117,1705935345618,-1147.57,0.00057534,120]
[312509118,1705935345650,-1151.76,0.00057534,120]
[312509119,1705935345683,-504.79,0.00057534,120]
[312509120,1705935345716,-828.94,0.00057534,120]
[312509121,1705935345748,-1921.76,0.00057534,120]
[312509122,1705935345780,-500.0,0.00057534,120]
[312509123,1705935345975,-517.22,0.00057534,120]
[312509124,1705935346012,-836.23,0.00057534,120]
[312509125,1705935346045,-859.23,0.00057534,120]
[312509126,1705935346080,-2987.07,0.00057534,120]
[312509127,1705935346114,-500.0,0.00057534,120]
[312509128,1705935346148,-1485.29,0.00057534,120]
[312509129,1705935346181,-699.12,0.00057534,120]
[312509130,1705935346215,-500.0,0.00057534,120]
[312509131,1705935346250,-1113.39,0.00057534,120]
[312509132,1705935346284,-1325.84,0.00057534,120]
[312509133,1705935346317,-610.32,0.00057534,120]
[312509134,1705935346349,-500.0,0.00057534,120]
[312509135,1705935346382,-500.0,0.00057534,120]
[312509136,1705935346413,-977.5,0.00057534,120]
[312509137,1705935346446,-1197.96,0.00057534,120]
[312509138,1705935346482,-1447.9,0.00057534,120]
[312509139,1705935346513,-680.84,0.00057534,120]
[312509140,1705935346545,-768.63,0.00057534,120]
[312509141,1705935346578,-6620.65,0.00057534,120]
[312509142,1705935346610,-4857.5,0.00057534,120]
[312509143,1705935346642,-500.0,0.00057534,120]
[312509144,1705935346674,-500.0,0.00057534,120]
[312509145,1705935346709,-2086.5,0.00057534,120]
[312509146,1705935346740,-1199.49,0.00057534,120]
[312509147,1705935346772,-2054.67,0.00057534,120]
[312509148,1705935346804,-500.0,0.00057534,120]
[312509149,1705935346836,-500.0,0.00057534,120]
[312509150,1705935346868,-401.79353411,0.00057534,120]
[312509151,1705935346901,-519.19,0.00057534,120]
[312509152,1705935346933,-886.41,0.00057534,120]
[312509153,1705935346966,-500.0,0.00057534,120]
[312509154,1705935346999,-10248.86,0.00057534,120]
[312509155,1705935347033,-1103.75,0.00057534,120]
[312509156,1705935347065,-500.0,0.00057534,120]
[312509157,1705935347098,-751.87,0.00057534,120]
[312509158,1705935347131,-3237.18,0.00057534,120]
[312509159,1705935347164,-2009.92,0.00057534,120]
[312509160,1705935347200,-789.59,0.00057534,120]
[312509161,1705935347235,-685.82,0.00057534,120]
[312509162,1705935347268,-500.0,0.00057534,120]
[312509163,1705935347301,-4264.33,0.00057534,120]
[312509164,1705935347335,-1535.34,0.00057534,120]
[312509165,1705935347369,-809.7,0.00057534,120]
[312509166,1705935347404,-1154.09,0.00057534,120]
[312509167,1705935347438,-1697.89,0.00057534,120]
[312509168,1705935347474,-1596.19,0.00057534,120]
[312509169,1705935347509,-964.24,0.00057534,120]
[312509170,1705935347542,-1154.51,0.00057534,120]
[312509171,1705935347576,-1595.7,0.00057534,120]
[312509172,1705935347609,-500.0,0.00057534,120]
[312509173,1705935347642,-2914.21,0.00057534,120]
[312509174,1705935347675,-1552.88,0.00057534,120]
[312509175,1705935347709,-608.04,0.00057534,120]
[312509176,1705935347742,-980.8,0.00057534,120]
[312509177,1705935347777,-700.43,0.00057534,120]
[312509178,1705935347810,-696.01,0.00057534,120]
[312509179,1705935347842,-1757.28,0.00057534,120]
[312509180,1705935347873,-665.51,0.00057534,120]
[312509181,1705935347905,-1171.38,0.00057534,120]
[312509182,1705935347938,-1708.66,0.00057534,120]
[312509183,1705935347971,-559.65,0.00057534,120]
[312509184,1705935348006,-1273.88,0.00057534,120]
[312509185,1705935348039,-536.79,0.00057534,120]
[312509186,1705935348074,-520.77,0.00057534,120]
[312509187,1705935348117,-1047.69,0.00057534,120]
[312509188,1705935348153,-1774.41,0.00057534,120]
[312509189,1705935348188,-714.84,0.00057534,120]
[312509190,1705935348224,-1003.68,0.00057534,120]
[312509191,1705935348267,-1882.22,0.00057534,120]
[312509192,1705935348303,-2030.56,0.00057534,120]
[312509193,1705935348339,-500.0,0.00057534,120]
[312509194,1705935348376,-1118.09,0.00057534,120]
[312509195,1705935348412,-1661.46,0.00057534,120]
[312509196,1705935348450,-2145.54,0.00057534,120]
[312509197,1705935348488,-500.0,0.00057534,120]
[312509198,1705935348523,-151.45,0.00057534,120]
[312509199,1705935348557,-150.40437152,0.00057563,73]
[312509200,1705935348591,-150.40437152,0.00057794,74]
[312509201,1705935348628,-500.0,0.00057808,120]
[312509202,1705935348667,-500.0,0.00057808,120]
[312509203,1705935348703,-500.0,0.00057808,120]
[312509204,1705935348746,-500.0,0.00057808,120]
[312509205,1705935348782,-500.0,0.00057808,120]
[312509206,1705935348817,-559.06,0.00057808,120]
[312509207,1705935348851,-500.0,0.00057808,120]
[312509208,1705935348884,-500.0,0.00057808,120]
[312509209,1705935348918,-500.0,0.00057808,120]
[312509210,1705935348953,-500.0,0.00057808,120]
[312509211,1705935348992,-500.0,0.00057808,120]
[312509212,1705935349031,-500.0,0.00057808,120]
[312509213,1705935349077,-614.89169756,0.00057808,120]
[312509214,1705935349118,-500.0,0.00057808,120]
[312509215,1705935349153,-500.0,0.00057808,120]
[312509216,1705935349188,-500.0,0.00057808,120]
[312509217,1705935349230,-500.0,0.00057808,120]
[312509218,1705935349272,-626.59,0.00057808,120]
[312509219,1705935349310,-500.0,0.00057808,120]
[312509220,1705935349343,-500.0,0.00057808,120]
[312509221,1705935349380,-500.0,0.00057808,120]
[312509222,1705935349415,-500.0,0.00057808,120]
[312509223,1705935349450,-711.06,0.00057808,120]
[312509224,1705935349485,-714.27,0.00057808,120]
[312509225,1705935349520,-918.11,0.00057808,120]
[312509227,1705935349719,-500.0,0.00057808,120]
[312509228,1705935349757,-687.84,0.00057808,120]
[312509229,1705935349793,-500.0,0.00057808,120]
[312509230,1705935349828,-587.61,0.00057808,120]
[312509231,1705935349862,-500.0,0.00057808,120]
[312509232,1705935349895,-882.35,0.00057808,120]
[312509233,1705935349928,-831.94,0.00057808,120]
[312509234,1705935349961,-1066.83,0.00057808,120]
[312509235,1705935349996,-506.4,0.00057808,120]
[312509236,1705935350032,-500.0,0.00057808,120]
[312509237,1705935350068,-573.60405286,0.00057808,120]
[312509238,1705935350112,-692.09,0.00057808,120]
[312509239,1705935350146,-500.0,0.00057808,120]
[312509240,1705935350181,-500.0,0.00057808,120]
[312509241,1705935350216,-548.63,0.00057808,120]
[312509242,1705935350256,-726.93,0.00057808,120]
[312509243,1705935350298,-500.0,0.00057808,120]
[312509244,1705935350335,-801.5,0.00057808,120]
[312509245,1705935350372,-533.44,0.00057808,120]
[312509246,1705935350407,-530.44987958,0.00057808,120]
[312509247,1705935350443,-500.0,0.00057808,120]
[312509248,1705935350479,-500.0,0.00057808,120]
[312509249,1705935350515,-517.9,0.00057808,120]
[312509250,1705935350549,-335.09568359,0.00057808,120]
[312509251,1705935350582,-500.0,0.00057808,120]
[312509252,1705935350616,-500.0,0.00057808,120]
[312509253,1705935350650,-500.0,0.00057808,120]
[312509254,1705935350686,-539.03,0.00057808,120]
[312509255,1705935350721,-500.0,0.00057808,120]
[312509256,1705935350760,-541.94,0.00057808,120]
[312509257,1705935350798,-628.32,0.00057808,120]
[312509258,1705935350833,-1064.71,0.00057808,120]
[312509259,1705935350868,-500.0,0.00057808,120]
[312509260,1705935350901,-500.0,0.00057808,120]
[312509261,1705935350934,-500.0,0.00057808,120]
[312509262,1705935350968,-500.0,0.00057808,120]
[312509263,1705935351005,-500.0,0.00057808,120]
[312509264,1705935351042,-688.57,0.00057808,120]
[312509265,1705935351080,-515.35,0.00057808,120]
[312509266,1705935351119,-500.0,0.00057808,120]
[312509267,1705935351172,-532.26,0.00057808,120]
[312509268,1705935351212,-500.0,0.00057808,120]
[312509269,1705935351250,-429.58,0.00057808,120]
[312509270,1705935351286,-511.93,0.00057808,120]
[312509271,1705935351324,-852.71,0.00057808,120]
[312509272,1705935351363,-500.0,0.00057808,120]
[312509273,1705935351401,-500.0,0.00057808,120]
[312509274,1705935351439,-500.0,0.00057808,120]
[312509275,1705935351476,-749.91,0.00057808,120]
[312509276,1705935351515,-500.0,0.00057808,120]
[312509277,1705935351548,-500.0,0.00057808,120]
[312509278,1705935351587,-500.0,0.00057808,120]
[312509279,1705935351620,-500.0,0.00057808,120]
[312509280,1705935351653,-706.74,0.00057808,120]
[312509281,1705935351686,-500.0,0.00057808,120]
[312509282,1705935351720,-500.0,0.00057808,120]
[312509283,1705935351756,-681.22,0.00057808,120]
[312509284,1705935351788,-500.0,0.00057808,120]
[312509285,1705935351820,-520.16,0.00057808,120]
[312509286,1705935351852,-978.9,0.00057808,120]
[312509287,1705935351884,-1380.88,0.00057808,120]
[312509288,1705935351916,-570.7,0.00057808,120]
[312509289,1705935351951,-500.0,0.00057808,120]
[312509290,1705935351985,-1255.4,0.00057808,120]
[312509291,1705935352019,-500.0,0.00057808,120]
[312509292,1705935352055,-1221.5,0.00057808,120]
[312509293,1705935352088,-1447.81,0.00057808,120]
[312509294,1705935352125,-500.0,0.00057808,120]
[312509295,1705935352171,-500.0,0.00057808,120]
[312509296,1705935352203,-2684.03,0.00057808,120]
[312509297,1705935352238,-970.29,0.00057808,120]
[312509298,1705935352270,-1726.87,0.00057808,120]
[312509299,1705935352304,-709.57,0.00057808,120]
[312509300,1705935352336,-556.49,0.00057808,120]
[312509301,1705935352370,-500.0,0.00057808,120]
[312509302,1705935352404,-1387.83,0.00057808,120]
[312509303,1705935352435,-717.18,0.00057808,120]
[312509304,1705935352468,-1397.88,0.00057808,120]
[312509305,1705935352502,-610.22,0.00057808,120]
[312509306,1705935352536,-1037.49,0.00057808,120]
[312509307,1705935352569,-937.59,0.00057808,120]
[312509308,1705935352599,-525.34896611,0.00057808,120]
[312509309,1705935352630,-510.67,0.00057808,120]
[312509310,1705935352663,-721.94,0.00057808,120]
[312509311,1705935352696,-658.41,0.00057808,120]
[312509312,1705935352729,-500.0,0.00057808,120]
[312509313,1705935352764,-1324.43,0.00057808,120]
[312509314,1705935352799,-1074.78,0.00057808,120]
[312509315,1705935352832,-854.08,0.00057808,120]
[312509316,1705935352864,-500.0,0.00057808,120]
[312509317,1705935352897,-669.07,0.00057808,120]
[312509318,1705935352929,-1043.64,0.00057808,120]
[312509319,1705935352961,-500.0,0.00057808,120]
[312509320,1705935352994,-1068.91,0.00057808,120]
[312509321,1705935353029,-1264.76,0.00057808,120]
[312509322,1705935353064,-537.28,0.00057808,120]
[312509323,1705935353098,-500.0,0.00057808,120]
[312509324,1705935353133,-738.6,0.00057808,120]
[312509325,1705935353173,-660.61,0.00057808,120]
[312509326,1705935353207,-500.0,0.00057808,120]
[312509327,1705935353242,-700.4,0.00057808,120]
[312509328,1705935353275,-500.0,0.00057808,120]
[312509329,1705935353308,-821.95,0.00057808,120]
[312509330,1705935353508,-648.78,0.00057808,120]
[312509331,1705935353542,-722.7,0.00057808,120]
[312509332,1705935353576,-1066.38,0.00057808,120]
[312509333,1705935353609,-2325.98,0.00057808,120]
[312509334,1705935353641,-500.0,0.00057808,120]
[312509335,1705935353673,-1073.56,0.00057808,120]
[312509336,1705935353706,-500.0,0.00057808,120]
[312509337,1705935353743,-972.0,0.00057808,120]
[312509338,1705935353775,-532.36,0.00057808,120]
[312509339,1705935353809,-500.0,0.00057808,120]
[312509340,1705935353844,-1793.95,0.00057808,120]
[312509341,1705935353879,-500.0,0.00057808,120]
[312509342,1705935353914,-500.0,0.00057808,120]
[312509343,1705935353947,-960.21,0.00057808,120]
[312509344,1705935353982,-500.0,0.00057808,120]
[312509345,1705935354019,-1245.11,0.00057808,120]
[312509346,1705935354053,-500.0,0.00057808,120]
[312509347,1705935354087,-1202.84,0.00057808,120]
[312509348,1705935354120,-500.0,0.00057808,120]
[312509349,1705935354154,-1089.12,0.00057808,120]
[312509350,1705935354189,-674.26,0.00057808,120]
[312509351,1705935354223,-191.11664414,0.00057808,120]
[312509352,1705935354259,-1121.58,0.00057808,120]
[312509353,1705935354295,-1148.71,0.00057808,120]
[312509354,1705935354328,-500.0,0.00057808,120]
[312509355,1705935354362,-782.17,0.00057808,120]
[312509356,1705935354397,-500.0,0.00057808,120]
[312509357,1705935354435,-1269.81,0.00057808,120]
[312509358,1705935354472,-1163.79,0.00057808,120]
[312509359,1705935354505,-755.55,0.00057808,120]
[312509360,1705935354538,-590.73,0.00057808,120]
[312509361,1705935354571,-500.0,0.00057808,120]
[312509362,1705935354604,-653.94,0.00057808,120]
[312509363,1705935354638,-500.0,0.00057808,120]
[312509364,1705935354672,-1082.1,0.00057808,120]
[312509365,1705935354705,-1119.29,0.00057808,120]
[312509366,1705935354741,-884.87,0.00057808,120]
[312509367,1705935354776,-590.44,0.00057808,120]
[312509368,1705935354810,-1021.29,0.00057808,120]
[312509369,1705935354843,-500.0,0.00057808,120]
[312509370,1705935354877,-557.86,0.00057808,120]
[312509371,1705935354911,-922.84,0.00057808,120]
[312509372,1705935354944,-1360.93,0.00057808,120]
[312509373,1705935354978,-854.16,0.00057808,120]
[312509374,1705935355014,-500.0,0.00057808,120]
[312509375,1705935355049,-612.83,0.00057808,120]
[312509376,1705935355087,-500.0,0.00057808,120]
[312509377,1705935355126,-763.7,0.00057808,120]
[312509378,1705935355166,-862.53,0.00057808,120]
[312509379,1705935355205,-709.99,0.00057808,120]
[312509380,1705935355246,-716.16,0.00057808,120]
[312509381,1705935355287,-743.65,0.00057808,120]
[312509382,1705935355327,-500.0,0.00057808,120]
[312509383,1705935355368,-501.89,0.00057808,120]
[312509384,1705935355412,-765.86,0.00057808,120]
[312509385,1705935355452,-1960.91,0.00057808,120]
[312509386,1705935355492,-500.0,0.00057808,120]
[312509387,1705935355529,-864.85,0.00057808,120]
[312509388,1705935355567,-895.93,0.00057808,120]
[312509389,1705935355602,-375.02,0.00057808,120]
[312509390,1705935355635,-652.75,0.00057808,120]
[312509391,1705935355669,-1017.75,0.00057808,120]
[312509392,1705935355702,-718.71,0.00057808,120]
[312509393,1705935355735,-500.0,0.00057808,120]
[312509394,1705935355772,-950.95,0.00057808,120]
[312509395,1705935355807,-1166.26,0.00057808,120]
[312509396,1705935355841,-1163.88,0.00057808,120]
[312509397,1705935355874,-706.58,0.00057808,120]
[312509398,1705935355908,-500.0,0.00057808,120]
[312509399,1705935355941,-775.78,0.00057808,120]
[312509400,1705935355974,-519.37016762,0.00057808,120]
[312509401,1705935356009,-1841.93,0.00057808,120]
[312509402,1705935356043,-604.25,0.00057808,120]
[312509403,1705935356076,-744.8,0.00057808,120]
[312509404,1705935356109,-500.0,0.00057808,120]
[312509405,1705935356143,-803.23,0.00057808,120]
[312509406,1705935356178,-1391.49,0.00057808,120]
[312509407,1705935356214,-500.0,0.00057808,120]
[312509408,1705935356253,-743.79,0.00057808,120]
[312509409,1705935356291,-758.95,0.00057808,120]
[312509410,1705935356327,-805.81,0.00057808,120]
[312509411,1705935356361,-575.63,0.00057808,120]
[312509412,1705935356399,-500.0,0.00057808,120]
[312509413,1705935356435,-869.66,0.00057808,120]
[312509414,1705935356474,-500.0,0.00057808,120]
[312509415,1705935356517,-907.16,0.00057808,120]
[312509416,1705935356557,-789.34,0.00057808,120]
[312509417,1705935356598,-619.23,0.00057808,120]
[312509418,1705935356640,-1452.65,0.00057808,120]
[312509419,1705935356683,-696.15,0.00057808,120]
[312509420,1705935356723,-205.25276179,0.00057808,120]
[312509421,1705935356766,-593.79,0.00057808,120]
[312509422,1705935356803,-1334.13,0.00057808,120]
[312509423,1705935356841,-500.0,0.00057808,120]
[312509424,1705935356880,-836.62,0.00057808,120]
[312509425,1705935356918,-837.72,0.00057808,120]
[312509426,1705935356955,-623.18,0.00057808,120]
[312509427,1705935356997,-1323.21,0.00057808,120]
[312509428,1705935357038,-557.03,0.00057808,120]
[312509429,1705935357078,-609.57,0.00057808,120]
[312509430,1705935357118,-1742.89,0.00057808,120]
[312509431,1705935357156,-951.02,0.00057808,120]
[312509432,1705935357193,-404.13083226,0.00057808,120]
[312509433,1705935357230,-500.0,0.00057808,120]
[312509434,1705935357440,-650.96,0.00057808,120]
[312509435,1705935357478,-762.89,0.00057808,120]
[312509436,1705935357516,-500.0,0.00057808,120]
[312509437,1705935357553,-659.39,0.00057808,120]
[312509438,1705935357589,-500.0,0.00057808,120]
[312509439,1705935357627,-600.02903571,0.00057808,120]
[312509440,1705935357665,-500.0,0.00057808,120]
[312509441,1705935357702,-651.75,0.00057808,120]
[312509442,1705935357740,-500.0,0.00057808,120]
[312509443,1705935357774,-500.0,0.00057808,120]
[312509444,1705935357808,-852.44,0.00057808,120]
[312509445,1705935357844,-418.37445827,0.00057808,120]
[312509446,1705935357880,-500.0,0.00057808,120]
[312509447,1705935357917,-1607.72,0.00057808,120]
[312509448,1705935357955,-1788.51,0.00057808,120]
[312509449,1705935357994,-500.0,0.00057808,120]
[312509450,1705935358031,-669.85,0.00057808,120]
[312509451,1705935358071,-744.04,0.00057808,120]
[312509452,1705935358110,-500.0,0.00057808,120]
[312509453,1705935358148,-645.14,0.00057808,120]
[312509454,1705935358188,-608.8,0.00057808,120]
[312509455,1705935358228,-702.16,0.00057808,120]
[312509456,1705935358271,-559.87,0.00057808,120]
[312509457,1705935358311,-500.0,0.00057808,120]
[312509458,1705935358357,-1326.85,0.00057808,120]
[312509459,1705935358398,-1404.36,0.00057808,120]
[312509460,1705935358435,-1490.02,0.00057808,120]
[312509461,1705935358472,-178.7351359,0.00057808,120]
[312509462,1705935358507,-500.0,0.00057808,120]
[312509463,1705935358542,-1273.58,0.00057808,120]
[312509464,1705935358578,-500.0,0.00057808,120]
[312509465,1705935358612,-1577.88,0.00057808,120]
[312509466,1705935358650,-850.44,0.00057808,120]
[312509467,1705935358688,-500.0,0.00057808,120]
[312509468,1705935358723,-665.34,0.00057808,120]
[312509469,1705935358763,-500.0,0.00057808,120]
[312509470,1705935358800,-836.88,0.00057808,120]
[312509471,1705935358835,-500.0,0.00057808,120]
[312509472,1705935358870,-1144.66,0.00057808,120]
[312509473,1705935358905,-500.0,0.00057808,120]
[312509474,1705935358940,-500.0,0.00057808,120]
[312509475,1705935358974,-649.5,0.00057808,120]
[312509476,1705935359012,-1273.46,0.00057808,120]
[312509477,1705935359051,-500.0,0.00057808,120]
[312509478,1705935359093,-1047.97,0.00057808,120]
[312509479,1705935359135,-500.0,0.00057808,120]
[312509480,1705935359177,-500.0,0.00057808,120]
[312509481,1705935359221,-600.2,0.00057808,120]
[312509482,1705935359261,-754.61,0.00057808,120]
[312509483,1705935359300,-852.62,0.00057808,120]
[312509484,1705935359336,-500.0,0.00057808,120]
[312509485,1705935359389,-1099.97,0.00057808,120]
[312509486,1705935359438,-500.0,0.00057808,120]
[312509487,1705935359476,-836.94,0.00057808,120]
[312509488,1705935359520,-857.36,0.00057808,120]
[312509489,1705935359557,-500.0,0.00057808,120]
[312509490,1705935359593,-597.17,0.00057808,120]
[312509491,1705935359630,-1527.68,0.00057808,120]
[312509492,1705935359667,-806.43,0.00057808,120]
[312509493,1705935359705,-2110.23,0.00057808,120]
[312509494,1705935359748,-500.0,0.00057808,120]
[312509495,1705935359787,-552.99,0.00057808,120]
[312509496,1705935359824,-1034.47,0.00057808,120]
[312509497,1705935359859,-1707.75,0.00057808,120]
[312509498,1705935359894,-1844.2,0.00057808,120]
[312509499,1705935359928,-666.0,0.00057808,120]
[312509500,1705935359962,-1129.13,0.00057808,120]
[312509501,1705935359997,-599.85,0.00057808,120]
[312509502,1705935360033,-500.0,0.00057808,120]
[312509503,1705935360070,-932.99,0.00057808,120]
[312509504,1705935360105,-2637.9,0.00057808,120]
[312509505,1705935360141,-1394.47,0.00057808,120]
[312509506,1705935360178,-756.66,0.00057808,120]
[312509507,1705935360215,-278.66051692,0.00057808,120]
[312509508,1705935360257,-500.0,0.00057808,120]
[312509509,1705935360293,-591.22,0.00057808,120]
[312509510,1705935360329,-1651.7,0.00057808,120]
[312509511,1705935360366,-970.35,0.00057808,120]
[312509512,1705935360403,-500.0,0.00057808,120]
[312509513,1705935360439,-506.16,0.00057808,120]
[312509514,1705935360476,-920.91,0.00057808,120]
[312509515,1705935360512,-752.54,0.00057808,120]
[312509516,1705935360546,-653.54,0.00057808,120]
[312509517,1705935360581,-1751.16,0.00057808,120]
[312509518,1705935360616,-652.01,0.00057808,120]
[312509519,1705935360649,-608.05556154,0.00057808,120]
[312509520,1705935360683,-631.92,0.00057808,120]
[312509521,1705935360717,-650.78,0.00057808,120]
[312509522,1705935360752,-752.76,0.00057808,120]
[312509523,1705935360785,-500.0,0.00057808,120]
[312509524,1705935360820,-2270.34,0.00057808,120]
[312509525,1705935360855,-1786.0,0.00057808,120]
[312509526,1705935360888,-500.0,0.00057808,120]
[312509527,1705935360923,-1361.82,0.00057808,120]
[312509528,1705935360958,-3797.03,0.00057808,120]
[312509529,1705935360997,-1781.02,0.00057808,120]
[312509530,1705935361040,-1364.57,0.00057808,120]
[312509531,1705935361091,-1756.9,0.00057808,120]
[312509532,1705935361133,-790.71,0.00057808,120]
[312509533,1705935361175,-598.0,0.00057808,120]
[312509534,1705935361216,-609.8,0.00057808,120]
[312509535,1705935361254,-543.53,0.00057808,120]
[312509536,1705935361291,-761.51,0.00057808,120]
[312509537,1705935361327,-1909.96,0.00057808,120]
[312509538,1705935361623,-1240.73,0.00057808,120]
[312509539,1705935361667,-12125.73,0.00057808,120]
[312509540,1705935361703,-500.0,0.00057808,120]
[312509541,1705935361742,-2651.29,0.00057808,120]
[312509542,1705935361777,-1183.91,0.00057808,120]
[312509543,1705935361814,-1284.7,0.00057808,120]
[312509544,1705935361849,-500.0,0.00057808,120]
[312509545,1705935361884,-5137.25,0.00057808,120]
[312509546,1705935361920,-1103.44,0.00057808,120]
[312509547,1705935361957,-500.0,0.00057808,120]
[312509548,1705935361995,-500.0,0.00057808,120]
[312509549,1705935362030,-500.0,0.00057808,120]
[312509550,1705935362066,-500.0,0.00057808,120]
[312509551,1705935362101,-2169.34,0.00057808,120]
[312509552,1705935362138,-12713.95,0.00057808,120]
[312509553,1705935362178,-1882.98,0.00057808,120]
[312509554,1705935362219,-967.39,0.00057808,120]
[312509555,1705935362258,-1657.15,0.00057808,120]
[312509556,1705935362295,-943.25,0.00057808,120]
[312509557,1705935362331,-500.0,0.00057808,120]
[312509558,1705935362367,-1729.69,0.00057808,120]
[312509559,1705935362404,-569.65,0.00057808,120]
[312509560,1705935362439,-606.66,0.00057808,120]
[312509561,1705935362473,-2125.62,0.00057808,120]
[312509562,1705935362507,-1419.55,0.00057808,120]
[312509563,1705935362539,-500.51665457,0.00057808,120]
[312509564,1705935362579,-1565.88,0.00057808,120]
[312509565,1705935362614,-689.11,0.00057808,120]
[312509566,1705935362647,-1689.91,0.00057808,120]
[312509567,1705935362682,-1921.07,0.00057808,120]
[312509568,1705935362716,-2015.32,0.00057808,120]
[312509569,1705935362751,-700.71,0.00057808,120]
[312509570,1705935362795,-500.0,0.00057808,120]
[312509571,1705935362836,-1539.91,0.00057808,120]
[312509572,1705935362871,-1927.03,0.00057808,120]
[312509573,1705935362906,-1314.85,0.00057808,120]
[312509574,1705935362940,-1686.46,0.00057808,120]
[312509575,1705935362975,-500.0,0.00057808,120]
[312509576,1705935363010,-677.55,0.00057808,120]
[312509577,1705935363047,-1985.74,0.00057808,120]
[312509578,1705935363083,-550.06,0.00057808,120]
[312509579,1705935363228,-712.03,0.00057808,120]
[312509580,1705935363266,-736.61,0.00057808,120]
[312509581,1705935363302,-4762.26,0.00057808,120]
[312509582,1705935363336,-2461.8,0.00057808,120]
[312509583,1705935363372,-1259.3,0.00057808,120]
[312509584,1705935363406,-1880.63,0.00057808,120]
[312509585,1705935363441,-1557.26,0.00057808,120]
[312509586,1705935363475,-793.99,0.00057808,120]
[312509587,1705935363509,-1379.69,0.00057808,120]
[312509588,1705935363544,-500.0,0.00057808,120]
[312509589,1705935363578,-2604.87,0.00057808,120]
[312509590,1705935363613,-932.81,0.00057808,120]
[312509591,1705935363647,-500.0,0.00057808,120]
[312509592,1705935363680,-500.0,0.00057808,120]
[312509593,1705935363719,-3105.23,0.00057808,120]
[312509594,1705935363755,-500.0,0.00057808,120]
[312509595,1705935363792,-1967.28,0.00057808,120]
[312509596,1705935363829,-504.66,0.00057808,120]
[312509597,1705935363866,-2108.57,0.00057808,120]
[312509598,1705935363908,-5534.47,0.00057808,120]
[312509599,1705935363945,-2822.45,0.00057808,120]
[312509600,1705935363982,-1147.57,0.00057808,120]
[312509601,1705935364021,-1151.76,0.00057808,120]
[312509602,1705935364061,-504.79,0.00057808,120]
[312509603,1705935364098,-828.94,0.00057808,120]
[312509604,1705935364135,-1921.76,0.00057808,120]
[312509605,1705935364171,-500.0,0.00057808,120]
[312509606,1705935364207,-517.22,0.00057808,120]
[312509607,1705935364246,-836.23,0.00057808,120]
[312509608,1705935364284,-859.23,0.00057808,120]
[312509609,1705935364321,-2987.07,0.00057808,120]
[312509610,1705935364357,-500.0,0.00057808,120]